fUSD/lending_fUSD_20260515
["ID","MTS","AMOUNT","RATE_DAILY","PERIOD"]
[422269349,1778776241000,-553.57,0.00013698,2]
[422269350,1778776241000,-553.57,0.00013698,2]
[422269345,1778776241000,-553.57,0.00013698,2]
[422269347,1778776241000,-553.57,0.00013698,2]
[422269358,1778776241000,-500.0,0.00013698,2]
[422269352,1778776241000,-553.57,0.00013698,2]
[422269357,1778776241000,-500.0,0.00013698,2]
[422269371,1778776241000,-500.0,0.00013698,2]
[422269359,1778776241000,-500.0,0.00013698,2]
[422269361,1778776241000,-500.0,0.00013698,2]
[422269363,1778776241000,-500.0,0.00013698,2]
[422269362,1778776241000,-500.0,0.00013698,2]
[422269365,1778776241000,-500.0,0.00013698,2]
[422269366,1778776241000,-500.0,0.00013698,2]
[422269370,1778776241000,-500.0,0.00013698,2]
[422269367,1778776241000,-299.94124875,0.00013698,2]
[422269369,1778776241000,-500.0,0.00013698,2]
[422269364,1778776241000,-500.0,0.00013698,2]
[422269368,1778776241000,-500.0,0.00013698,2]
[422269343,1778776241000,-553.57,0.00013698,2]
[422269374,1778776241000,-500.0,0.00013698,2]
[422269372,1778776241000,-500.0,0.00013698,2]
[422269360,1778776241000,-500.0,0.00013698,2]
[422269344,1778776241000,-553.57,0.00013698,2]
[422269328,1778776241000,-500.0,0.00013698,2]
[422269346,1778776241000,-553.57,0.00013698,2]
[422269373,1778776241000,-500.0,0.00013698,2]
[422269300,1778776241000,-708.83,0.00013698,2]
[422269302,1778776241000,-708.83,0.00013698,2]
[422269314,1778776241000,-500.0,0.00013698,2]
[422269308,1778776241000,-500.0,0.00013698,2]
[422269306,1778776241000,-500.0,0.00013698,2]
[422269320,1778776241000,-500.0,0.00013698,2]
[422269319,1778776241000,-500.0,0.00013698,2]
[422269312,1778776241000,-500.0,0.00013698,2]
[422269317,1778776241000,-500.0,0.00013698,2]
[422269310,1778776241000,-500.0,0.00013698,2]
[422269322,1778776241000,-500.0,0.00013698,2]
[422269321,1778776241000,-500.0,0.00013698,2]
[422269323,1778776241000,-500.0,0.00013698,2]
[422269340,1778776241000,-553.57,0.00013698,2]
[422269325,1778776241000,-500.0,0.00013698,2]
[422269330,1778776241000,-500.0,0.00013698,2]
[422269331,1778776241000,-400.11074558,0.00013698,2]
[422269326,1778776241000,-500.0,0.00013698,2]
[422269324,1778776241000,-500.0,0.00013698,2]
[422269329,1778776241000,-500.0,0.00013698,2]
[422269327,1778776241000,-500.0,0.00013698,2]
[422269332,1778776241000,-500.0,0.00013698,2]
[422269333,1778776241000,-500.0,0.00013698,2]
[422269335,1778776241000,-500.0,0.00013698,2]
[422269337,1778776241000,-500.47540204,0.00013698,2]
[422269336,1778776241000,-500.0,0.00013698,2]
[422269338,1778776241000,-553.57,0.00013698,2]
[422269339,1778776241000,-553.57,0.00013698,2]
[422269341,1778776241000,-553.57,0.00013698,2]
[422269334,1778776241000,-501.57482876,0.00013698,2]
[422269304,1778776241000,-708.83,0.00013698,2]
[422269376,1778776241000,-500.0,0.00013698,2]
[422269377,1778776241000,-520.29475132,0.00013698,2]
[422269412,1778776241000,-520.73,0.00013698,2]
[422269407,1778776241000,-591.89,0.00013698,2]
[422269409,1778776241000,-520.73,0.00013698,2]
[422269405,1778776241000,-591.89,0.00013698,2]
[422269414,1778776241000,-520.73,0.00013698,2]
[422269418,1778776241000,-520.73,0.00013698,2]
[422269417,1778776241000,-520.73,0.00013698,2]
[422269419,1778776241000,-520.73,0.00013698,2]
[422269424,1778776241000,-500.0,0.00013698,2]
[422269423,1778776241000,-520.73,0.00013698,2]
[422269422,1778776241000,-520.73,0.00013698,2]
[422269420,1778776241000,-520.73,0.00013698,2]
[422269426,1778776241000,-500.0,0.00013698,2]
[422269421,1778776241000,-520.73,0.00013698,2]
[422269427,1778776241000,-500.0,0.00013698,2]
[422269425,1778776241000,-500.0,0.00013698,2]
[422269428,1778776241000,-500.0,0.00013698,2]
[422269430,1778776241000,-611.98,0.00013698,2]
[422269429,1778776241000,-530.09266044,0.00013698,2]
[422269431,1778776241000,-611.98,0.00013698,2]
[422269435,1778776241000,-611.98,0.00013698,2]
[422269436,1778776241000,-611.98,0.00013698,2]
[422269433,1778776241000,-611.98,0.00013698,2]
[422269439,1778776241000,-611.98,0.00013698,2]
[422269432,1778776241000,-611.98,0.00013698,2]
[422269434,1778776241000,-611.98,0.00013698,2]
[422269437,1778776241000,-611.98,0.00013698,2]
[422269440,1778776241000,-611.98,0.00013698,2]
[422269375,1778776241000,-500.0,0.00013698,2]
[422269408,1778776241000,-591.89,0.00013698,2]
[422269413,1778776241000,-520.73,0.00013698,2]
[422269438,1778776241000,-611.98,0.00013698,2]
[422269403,1778776241000,-591.89,0.00013698,2]
[422269378,1778776241000,-375.38526683,0.00013698,2]
[422269379,1778776241000,-500.0,0.00013698,2]
[422269380,1778776241000,-500.0,0.00013698,2]
[422269385,1778776241000,-500.0,0.00013698,2]
[422269381,1778776241000,-500.0,0.00013698,2]
[422269382,1778776241000,-500.0,0.00013698,2]
[422269383,1778776241000,-353.4207141,0.00013698,2]
[422269388,1778776241000,-591.89,0.00013698,2]
[422269386,1778776241000,-500.0,0.00013698,2]
[422269384,1778776241000,-500.0,0.00013698,2]
[422269389,1778776241000,-591.89,0.00013698,2]
[422269390,1778776241000,-591.89,0.00013698,2]
[422269391,1778776241000,-500.0,0.00013698,2]
[422269392,1778776241000,-591.89,0.00013698,2]
[422269387,1778776241000,-591.89,0.00013698,2]
[422269396,1778776241000,-591.89,0.00013698,2]
[422269404,1778776241000,-591.89,0.00013698,2]
[422269411,1778776241000,-520.73,0.00013698,2]
[422269393,1778776241000,-500.0,0.00013698,2]
[422269415,1778776241000,-520.73,0.00013698,2]
[422269410,1778776241000,-520.73,0.00013698,2]
[422269416,1778776241000,-520.73,0.00013698,2]
[422269402,1778776241000,-591.89,0.00013698,2]
[422269406,1778776241000,-591.89,0.00013698,2]
[422269400,1778776241000,-591.89,0.00013698,2]
[422269399,1778776241000,-591.89,0.00013698,2]
[422269395,1778776241000,-591.89,0.00013698,2]
[422269397,1778776241000,-591.89,0.00013698,2]
[422269398,1778776241000,-591.89,0.00013698,2]
[422269394,1778776241000,-211.40444943,0.00013698,2]
[422269401,1778776241000,-591.89,0.00013698,2]
[422269484,1778776242000,-500.0,0.00013698,2]
[422269482,1778776242000,-500.0,0.00013698,2]
[422269480,1778776242000,-500.0,0.00013698,2]
[422269481,1778776242000,-500.0,0.00013698,2]
[422269477,1778776242000,-500.0,0.00013698,2]
[422269476,1778776242000,-648.70051328,0.00013698,2]
[422269479,1778776242000,-500.0,0.00013698,2]
[422269478,1778776242000,-500.0,0.00013698,2]
[422269474,1778776242000,-500.0,0.00013698,2]
[422269486,1778776242000,-500.0,0.00013698,2]
[422269475,1778776242000,-500.0,0.00013698,2]
[422269472,1778776242000,-500.0,0.00013698,2]
[422269506,1778776242000,-520.73,0.00013989,2]
[422269490,1778776242000,-783.7,0.00013699,2]
[422269487,1778776242000,-500.0,0.00013698,2]
[422269492,1778776242000,-14253.66,0.00013699,2]
[422269483,1778776242000,-500.0,0.00013698,2]
[422269489,1778776242000,-166.66,0.00013699,2]
[422269485,1778776242000,-500.0,0.00013698,2]
[422269488,1778776242000,-624.48704047,0.00013698,2]
[422269494,1778776242000,-1485.93,0.000137,2]
[422269493,1778776242000,-200.0,0.00013699,2]
[422269496,1778776242000,-166.66,0.00013836,2]
[422269495,1778776242000,-163.16,0.000137,2]
[422269508,1778776242000,-611.98,0.00013989,2]
[422269471,1778776242000,-500.0,0.00013698,2]
[422269491,1778776242000,-2500.0,0.00013699,2]
[422269473,1778776242000,-500.0,0.00013698,2]
[422269456,1778776242000,-610.39,0.00013698,2]
[422269469,1778776242000,-500.0,0.00013698,2]
[422269497,1778776242000,-500.0,0.00013947,2]
[422269441,1778776242000,-611.98,0.00013698,2]
[422269443,1778776242000,-611.98,0.00013698,2]
[422269442,1778776242000,-611.98,0.00013698,2]
[422269444,1778776242000,-611.98,0.00013698,2]
[422269446,1778776242000,-610.39,0.00013698,2]
[422269445,1778776242000,-503.35448234,0.00013698,2]
[422269447,1778776242000,-610.39,0.00013698,2]
[422269448,1778776242000,-610.39,0.00013698,2]
[422269450,1778776242000,-610.39,0.00013698,2]
[422269449,1778776242000,-610.39,0.00013698,2]
[422269451,1778776242000,-610.39,0.00013698,2]
[422269454,1778776242000,-610.39,0.00013698,2]
[422269470,1778776242000,-500.0,0.00013698,2]
[422269453,1778776242000,-610.39,0.00013698,2]
[422269455,1778776242000,-610.39,0.00013698,2]
[422269457,1778776242000,-610.39,0.00013698,2]
[422269458,1778776242000,-610.39,0.00013698,2]
[422269459,1778776242000,-610.39,0.00013698,2]
[422269460,1778776242000,-610.39,0.00013698,2]
[422269461,1778776242000,-500.0,0.00013698,2]
[422269463,1778776242000,-500.0,0.00013698,2]
[422269465,1778776242000,-500.0,0.00013698,2]
[422269462,1778776242000,-500.0,0.00013698,2]
[422269464,1778776242000,-500.0,0.00013698,2]
[422269466,1778776242000,-500.0,0.00013698,2]
[422269468,1778776242000,-500.0,0.00013698,2]
[422269467,1778776242000,-500.0,0.00013698,2]
[422269452,1778776242000,-610.39,0.00013698,2]
[422269504,1778776242000,-553.57,0.00013989,2]
[422269503,1778776242000,-240.39055328,0.00013989,2]
[422269501,1778776242000,-500.0,0.00013989,2]
[422269538,1778776242000,-1485.93,0.000156,2]
[422269543,1778776242000,-68956.65254002,0.00016286,2]
[422269542,1778776242000,-22171.51971509,0.00016178,2]
[422269546,1778776242000,-228.26953422,0.00016418,2]
[422269545,1778776242000,-165.0519984,0.00016402,2]
[422269544,1778776242000,-150.0,0.00016336,2]
[422269547,1778776242000,-1558.1,0.00016438,2]
[422269555,1778776242000,-156.58,0.00016712,2]
[422269556,1778776242000,-794.69,0.00016767,2]
[422269558,1778776242000,-68956.65254002,0.00017482,2]
[422269559,1778776242000,-165.0519984,0.00017916,2]
[422269557,1778776242000,-1491.22,0.00017,2]
[422269562,1778776242000,-500.0,0.00018301,2]
[422269561,1778776242000,-670.4503028,0.000182,2]
[422269560,1778776242000,-670.4503028,0.00018,2]
[422269564,1778776242000,-1558.1,0.0001841,2]
[422269563,1778776242000,-670.4503028,0.000184,2]
[422269565,1778776242000,-670.4503028,0.000185,2]
[422269566,1778776242000,-509.40864861,0.00018536,2]
[422269567,1778776242000,-68956.65254002,0.00018679,2]
[422269568,1778776242000,-670.4503028,0.000187,2]
[422269569,1778776242000,-1202.58,0.00018778,2]
[422269571,1778776242000,-500.0,0.00018778,2]
[422269573,1778776242000,-500.0,0.00018778,2]
[422269574,1778776242000,-500.0,0.00018778,2]
[422269570,1778776242000,-1202.58,0.00018778,2]
[422269498,1778776242000,-166.66,0.00013973,2]
[422269540,1778776242000,-8183.64,0.00016116,2]
[422269550,1778776242000,-616.92635506,0.00016438,2]
[422269572,1778776242000,-500.0,0.00018778,2]
[422269535,1778776242000,-3975.0,0.00015556,2]
[422269553,1778776242000,-282.4,0.00016438,2]
[422269499,1778776242000,-1202.58,0.00013989,2]
[422269509,1778776242000,-610.39,0.00013989,2]
[422269510,1778776242000,-4080.67207393,0.0001399,2]
[422269511,1778776242000,-3483.58,0.000141,2]
[422269514,1778776242000,-9035.0,0.00014141,2]
[422269515,1778776242000,-1855.0,0.00014145,2]
[422269512,1778776242000,-1161.19,0.000141,2]
[422269517,1778776242000,-166.66,0.00014247,2]
[422269513,1778776242000,-166.66,0.0001411,2]
[422269516,1778776242000,-500.0,0.00014221,2]
[422269519,1778776242000,-166.66,0.00014384,2]
[422269520,1778776242000,-500.0,0.00014495,2]
[422269500,1778776242000,-500.0,0.00013989,2]
[422269521,1778776242000,-500.0,0.00014769,2]
[422269536,1778776242000,-499.73797022,0.00015568,2]
[422269529,1778776242000,-591.89,0.00014899,2]
[422269534,1778776242000,-552.7858693,0.00015043,2]
[422269528,1778776242000,-591.89,0.00014899,2]
[422269518,1778776242000,-268.58058186,0.00014247,21]
[422269532,1778776242000,-591.89,0.00014899,2]
[422269533,1778776242000,-591.91232681,0.00014899,2]
[422269531,1778776242000,-591.89,0.00014899,2]
[422269524,1778776242000,-708.83,0.00014899,2]
[422269525,1778776242000,-708.83,0.00014899,2]
[422269523,1778776242000,-708.83,0.00014899,2]
[422269522,1778776242000,-708.83,0.00014899,2]
[422269526,1778776242000,-709.05862258,0.00014899,2]
[422269614,1778776243000,-553.57,0.00020546,2]
[422269608,1778776243000,-8393.88,0.0002,2]
[422269616,1778776243000,-611.98,0.00020546,2]
[422269612,1778776243000,-500.0,0.00020546,2]
[422269606,1778776243000,-2698.0,0.0002,2]
[422269611,1778776243000,-1202.58,0.00020546,2]
[422269610,1778776243000,-1558.1,0.00020381,2]
[422269609,1778776243000,-22171.51971509,0.00020327,2]
[422269617,1778776243000,-610.39,0.00020546,2]
[422269607,1778776243000,-3629.0,0.0002,2]
[422269613,1778776243000,-457.86163364,0.00020546,2]
[422269615,1778776243000,-520.73,0.00020546,2]
[422269624,1778776243000,-4955.9,0.00020548,2]
[422269620,1778776243000,-4955.9,0.00020548,2]
[422269629,1778776243000,-4955.9,0.00020548,2]
[422269631,1778776243000,-4955.9,0.00020548,2]
[422269621,1778776243000,-4955.9,0.00020548,2]
[422269622,1778776243000,-4955.9,0.00020548,2]
[422269619,1778776243000,-4955.9,0.00020548,2]
[422269623,1778776243000,-4955.9,0.00020548,2]
[422269627,1778776243000,-4955.9,0.00020548,2]
[422269626,1778776243000,-4955.9,0.00020548,2]
[422269625,1778776243000,-4955.9,0.00020548,2]
[422269628,1778776243000,-4955.9,0.00020548,2]
[422269605,1778776243000,-200.0,0.0002,2]
[422269618,1778776243000,-4955.9,0.00020548,2]
[422269597,1778776243000,-631.0,0.0002,2]
[422269589,1778776243000,-600.0,0.0001936,2]
[422269603,1778776243000,-5955.0,0.0002,2]
[422269575,1778776243000,-553.57,0.00018778,2]
[422269576,1778776243000,-553.57,0.00018778,2]
[422269577,1778776243000,-520.73,0.00018778,2]
[422269581,1778776243000,-610.39,0.00018778,2]
[422269578,1778776243000,-520.73,0.00018778,2]
[422269580,1778776243000,-611.98,0.00018778,2]
[422269579,1778776243000,-611.98,0.00018778,2]
[422269583,1778776243000,-20616.0609715,0.00018779,2]
[422269582,1778776243000,-610.39,0.00018778,2]
[422269584,1778776243000,-509.41,0.00018865,2]
[422269587,1778776243000,-600.0,0.00019315,2]
[422269588,1778776243000,-164.11,0.00019348,2]
[422269599,1778776243000,-159.0,0.0002,2]
[422269586,1778776243000,-509.41,0.00019064,2]
[422269590,1778776243000,-164.11,0.0001936,2]
[422269592,1778776243000,-600.0,0.00019396,2]
[422269591,1778776243000,-164.11,0.00019388,2]
[422269632,1778776243000,-4955.9,0.00020548,2]
[422269594,1778776243000,-1485.93,0.000195,2]
[422269595,1778776243000,-10000.0,0.00019503,2]
[422269604,1778776243000,-258.0,0.0002,2]
[422269598,1778776243000,-224.0,0.0002,2]
[422269596,1778776243000,-296.10258314,0.00019805,2]
[422269600,1778776243000,-370.0,0.0002,2]
[422269602,1778776243000,-1398.0,0.0002,2]
[422269601,1778776243000,-1907.0,0.0002,2]
[422269585,1778776243000,-1023.14096323,0.00019,2]
[422269633,1778776243000,-4955.9,0.00020548,2]
[422269593,1778776243000,-165.0519984,0.00019431,2]
[422269637,1778776243000,-4955.9,0.00020548,2]
[422269670,1778776243000,-2000.0,0.00020987,2]
[422269663,1778776243000,-475.82,0.00020802,2]
[422269665,1778776243000,-475.82,0.00020905,2]
[422269672,1778776243000,-2000.0,0.00020987,2]
[422269667,1778776243000,-165.0519984,0.00020946,2]
[422269664,1778776243000,-4600.0649862,0.00020884,2]
[422269673,1778776243000,-2000.0,0.00020987,2]
[422269674,1778776243000,-2000.0,0.00020987,2]
[422269675,1778776243000,-2000.0,0.00020987,2]
[422269676,1778776243000,-2000.0,0.00020987,2]
[422269678,1778776243000,-1202.58,0.00020999,2]
[422269679,1778776243000,-1202.58,0.00020999,2]
[422269671,1778776243000,-2000.0,0.00020987,2]
[422269677,1778776243000,-2000.0,0.00020987,2]
[422269681,1778776243000,-1202.58,0.00020999,2]
[422269682,1778776243000,-1202.61702494,0.00020999,2]
[422269684,1778776243000,-553.57,0.00020999,2]
[422269683,1778776243000,-520.0293993,0.00020999,2]
[422269685,1778776243000,-553.57,0.00020999,2]
[422269686,1778776243000,-553.57,0.00020999,2]
[422269688,1778776243000,-553.69037677,0.00020999,2]
[422269691,1778776243000,-520.73,0.00020999,2]
[422269690,1778776243000,-520.73,0.00020999,2]
[422269689,1778776243000,-520.73,0.00020999,2]
[422269687,1778776243000,-553.57,0.00020999,2]
[422269692,1778776243000,-520.73,0.00020999,2]
[422269680,1778776243000,-1202.58,0.00020999,2]
[422269669,1778776243000,-2000.0,0.00020987,2]
[422269638,1778776243000,-4955.9,0.00020548,2]
[422269668,1778776243000,-2000.0,0.00020987,2]
[422269634,1778776243000,-4955.9,0.00020548,2]
[422269643,1778776243000,-4955.9,0.00020548,2]
[422269636,1778776243000,-4955.9,0.00020548,2]
[422269641,1778776243000,-4955.9,0.00020548,2]
[422269635,1778776243000,-4955.9,0.00020548,2]
[422269640,1778776243000,-4955.9,0.00020548,2]
[422269644,1778776243000,-4955.9,0.00020548,2]
[422269662,1778776243000,-475.82,0.00020699,2]
[422269639,1778776243000,-4955.9,0.00020548,2]
[422269645,1778776243000,-4955.9,0.00020548,2]
[422269649,1778776243000,-4955.9,0.00020548,2]
[422269646,1778776243000,-4955.9,0.00020548,2]
[422269648,1778776243000,-4955.9,0.00020548,2]
[422269642,1778776243000,-4955.9,0.00020548,2]
[422269653,1778776243000,-2000.0,0.00020556,2]
[422269647,1778776243000,-4955.9,0.00020548,2]
[422269661,1778776243000,-475.82,0.00020596,2]
[422269659,1778776243000,-2000.0,0.00020556,2]
[422269660,1778776243000,-2000.0,0.00020556,2]
[422269656,1778776243000,-2000.0,0.00020556,2]
[422269658,1778776243000,-2000.0,0.00020556,2]
[422269655,1778776243000,-2000.0,0.00020556,2]
[422269651,1778776243000,-2000.0,0.00020556,2]
[422269657,1778776243000,-2000.0,0.00020556,2]
[422269650,1778776243000,-21796.06,0.00020548,2]
[422269652,1778776243000,-2000.0,0.00020556,2]
[422269654,1778776243000,-2000.0,0.00020556,2]
[422269726,1778776244000,-475.82,0.00021008,2]
[422269729,1778776244000,-475.82,0.00021214,2]
[422269727,1778776244000,-475.82,0.00021111,2]
[422269731,1778776244000,-1759.68,0.00021273,2]
[422269728,1778776244000,-794.69,0.00021205,2]
[422269723,1778776244000,-157.0,0.00021,2]
[422269733,1778776244000,-4851.25,0.00021273,2]
[422269725,1778776244000,-157.0,0.00021,2]
[422269724,1778776244000,-157.0,0.00021,2]
[422269734,1778776244000,-475.82,0.00021317,2]
[422269732,1778776244000,-1570.72,0.00021273,2]
[422269730,1778776244000,-153.0,0.00021217,2]
[422269748,1778776244000,-350.0,0.00021654,2]
[422269746,1778776244000,-350.0,0.00021654,2]
[422269735,1778776244000,-150.0,0.00021329,2]
[422269738,1778776244000,-150.0,0.00021329,2]
[422269737,1778776244000,-150.0,0.00021329,2]
[422269741,1778776244000,-223.0,0.00021329,2]
[422269739,1778776244000,-150.0,0.00021329,2]
[422269740,1778776244000,-150.0,0.00021329,2]
[422269744,1778776244000,-475.82,0.00021523,2]
[422269747,1778776244000,-350.0,0.00021654,2]
[422269743,1778776244000,-475.82,0.0002142,2]
[422269742,1778776244000,-1485.93,0.000214,2]
[422269745,1778776244000,-475.85500783,0.00021626,2]
[422269721,1778776244000,-157.0,0.00021,2]
[422269736,1778776244000,-150.0,0.00021329,2]
[422269719,1778776244000,-525.0485446,0.00021,2]
[422269703,1778776244000,-610.6004357,0.00020999,2]
[422269717,1778776244000,-200.0,0.00021,2]
[422269749,1778776244000,-350.0,0.00021654,2]
[422269694,1778776244000,-611.98,0.00020999,2]
[422269696,1778776244000,-611.98,0.00020999,2]
[422269693,1778776244000,-520.91,0.00020999,2]
[422269695,1778776244000,-611.98,0.00020999,2]
[422269697,1778776244000,-611.98,0.00020999,2]
[422269699,1778776244000,-610.39,0.00020999,2]
[422269709,1778776244000,-224.0,0.00021,2]
[422269698,1778776244000,-612.14482015,0.00020999,2]
[422269700,1778776244000,-610.39,0.00020999,2]
[422269706,1778776244000,-6111.0,0.00021,2]
[422269705,1778776244000,-15000.0,0.00021,2]
[422269718,1778776244000,-2698.0,0.00021,2]
[422269702,1778776244000,-610.39,0.00020999,2]
[422269707,1778776244000,-15000.0,0.00021,2]
[422269701,1778776244000,-610.39,0.00020999,2]
[422269708,1778776244000,-6111.0,0.00021,2]
[422269710,1778776244000,-159.0,0.00021,2]
[422269712,1778776244000,-1907.0,0.00021,2]
[422269722,1778776244000,-157.0,0.00021,2]
[422269711,1778776244000,-370.0,0.00021,2]
[422269714,1778776244000,-6111.0,0.00021,2]
[422269715,1778776244000,-4804.77610292,0.00021,2]
[422269713,1778776244000,-15000.0,0.00021,2]
[422269716,1778776244000,-258.0,0.00021,2]
[422269720,1778776244000,-3629.0,0.00021,2]
[422269704,1778776244000,-631.0,0.00021,2]
[422269759,1778776244000,-2598.58215521,0.00021918,2]
[422269750,1778776244000,-350.0,0.00021654,2]
[422269809,1778776244000,-154.0,0.00023,30]
[422269784,1778776244000,-1000.0,0.00022978,2]
[422269786,1778776244000,-200.0,0.00023,30]
[422269789,1778776244000,-200.0,0.00023,30]
[422269791,1778776244000,-1907.0,0.00023,2]
[422269790,1778776244000,-370.0,0.00023,2]
[422269787,1778776244000,-224.0,0.00023,2]
[422269792,1778776244000,-200.0,0.00023,30]
[422269788,1778776244000,-159.0,0.00023,2]
[422269781,1778776244000,-1570.72,0.00022691,2]
[422269794,1778776244000,-363.0,0.00023,30]
[422269805,1778776244000,-154.0,0.00023,30]
[422269804,1778776244000,-154.0,0.00023,30]
[422269793,1778776244000,-200.0,0.00023,30]
[422269803,1778776244000,-154.0,0.00023,30]
[422269795,1778776244000,-258.0,0.00023,2]
[422269796,1778776244000,-8508.0,0.00023,2]
[422269801,1778776244000,-154.0,0.00023,30]
[422269799,1778776244000,-166.0,0.00023,30]
[422269797,1778776244000,-200.0,0.00023,2]
[422269798,1778776244000,-2698.0,0.00023,2]
[422269800,1778776244000,-154.0,0.00023,30]
[422269806,1778776244000,-154.0,0.00023,30]
[422269807,1778776244000,-154.0,0.00023,30]
[422269808,1778776244000,-154.0,0.00023,30]
[422269811,1778776244000,-154.0,0.00023,30]
[422269810,1778776244000,-154.0,0.00023,30]
[422269760,1778776244000,-8393.88,0.00021923,2]
[422269783,1778776244000,-2025.7891656,0.00022831,2]
[422269785,1778776244000,-631.0,0.00023,2]
[422269802,1778776244000,-154.0,0.00023,30]
[422269780,1778776244000,-1759.68,0.00022691,2]
[422269782,1778776244000,-318.55,0.00022759,2]
[422269752,1778776244000,-350.0,0.00021654,2]
[422269751,1778776244000,-350.0,0.00021654,2]
[422269755,1778776244000,-201.0,0.00021654,2]
[422269754,1778776244000,-350.0,0.00021654,2]
[422269758,1778776244000,-150.0,0.00021918,2]
[422269757,1778776244000,-5000.0,0.00021918,2]
[422269753,1778776244000,-350.0,0.00021654,2]
[422269762,1778776244000,-631.0,0.00022,2]
[422269761,1778776244000,-789.58,0.00021937,2]
[422269773,1778776244000,-1558.1,0.00022353,2]
[422269767,1778776244000,-258.0,0.00022,2]
[422269772,1778776244000,-789.58,0.00022211,2]
[422269766,1778776244000,-1907.0,0.00022,2]
[422269756,1778776244000,-500.0,0.00021739,2]
[422269764,1778776244000,-159.0,0.00022,2]
[422269765,1778776244000,-370.0,0.00022,2]
[422269776,1778776244000,-1873.56,0.00022466,2]
[422269778,1778776244000,-789.58,0.00022485,2]
[422269774,1778776244000,-1803.52033484,0.000224,2]
[422269777,1778776244000,-765.41,0.00022466,2]
[422269775,1778776244000,-1711.75,0.00022466,2]
[422269779,1778776244000,-1300.89360295,0.00022603,2]
[422269771,1778776244000,-157.0,0.00022091,3]
[422269769,1778776244000,-2698.0,0.00022,2]
[422269768,1778776244000,-200.0,0.00022,2]
[422269763,1778776244000,-224.0,0.00022,2]
[422269770,1778776244000,-3629.0,0.00022,2]
[422269851,1778776245000,-150.0,0.00023671,2]
[422269850,1778776245000,-180.24546421,0.00023374,2]
[422269852,1778776245000,-2025.7891656,0.00023744,2]
[422269842,1778776245000,-159.0,0.00023,30]
[422269848,1778776245000,-1485.93,0.000233,7]
[422269845,1778776245000,-159.0,0.00023,30]
[422269849,1778776245000,-176.0,0.00023332,2]
[422269847,1778776245000,-3629.0,0.00023,2]
[422269844,1778776245000,-159.0,0.00023,30]
[422269853,1778776245000,-500.0,0.00023781,2]
[422269854,1778776245000,-500.0,0.00023808,2]
[422269846,1778776245000,-159.0,0.00023,30]
[422269855,1778776245000,-8393.88,0.00023846,2]
[422269865,1778776245000,-1100.0,0.0002411,2]
[422269857,1778776245000,-224.0,0.00024,2]
[422269858,1778776245000,-159.0,0.00024,2]
[422269860,1778776245000,-1907.0,0.00024,2]
[422269856,1778776245000,-631.0,0.00024,2]
[422269862,1778776245000,-200.0,0.00024,2]
[422269861,1778776245000,-258.0,0.00024,2]